fUSD/lending_fUSD_20250517
["ID","MTS","AMOUNT","RATE_DAILY","PERIOD"]
[361335566,1747486238646,-150.0,0.00025883,2]
[361335567,1747486238655,-150.0,0.00025885,2]
[361335568,1747486238665,-175.0,0.0002589,7]
[361335569,1747486238674,-150.0,0.00025893,2]
[361335570,1747486238683,-150.0,0.00025897,2]
[361335571,1747486238693,-150.0,0.00025909,2]
[361335572,1747486238702,-150.0,0.00025914,2]
[361335573,1747486238712,-150.0,0.00025916,2]
[361335574,1747486238721,-150.0,0.00025919,2]
[361335575,1747486238730,-1456.0,0.0002592,2]
[361335576,1747486238740,-150.0,0.00025922,2]
[361335577,1747486238749,-150.0,0.00025924,2]
[361335578,1747486238759,-150.0,0.00025924,2]
[361335579,1747486238768,-150.0,0.00025925,2]
[361335580,1747486238777,-150.0,0.00025925,2]
[361335581,1747486238790,-150.0,0.00025932,2]
[361335582,1747486238800,-297.85156105,0.00025936,2]
[361335583,1747486238809,-150.0,0.00025939,2]
[361335584,1747486238819,-150.0,0.0002594,2]
[361335585,1747486238829,-150.0,0.00025947,2]
[361335586,1747486238838,-150.0,0.00025948,2]
[361335587,1747486238847,-150.0,0.00025951,2]
[361335588,1747486238857,-150.0,0.00025954,2]
[361335589,1747486238866,-150.0,0.00025956,2]
[361335590,1747486238876,-150.0,0.00025957,2]
[361335591,1747486238886,-150.0,0.0002596,2]
[361335592,1747486238895,-150.0,0.00025963,2]
[361335593,1747486238904,-150.0,0.00025966,2]
[361335594,1747486238914,-150.0,0.00025972,2]
[361335595,1747486238924,-150.0,0.00025976,2]
[361335596,1747486238933,-150.0,0.00025981,2]
[361335597,1747486238943,-150.0,0.00025981,2]
[361335598,1747486238953,-150.0,0.00025983,2]
[361335599,1747486238962,-150.0,0.00025983,2]
[361335600,1747486238972,-215.0738,0.00025985,2]
[361335601,1747486238982,-150.0,0.00025989,2]
[361335602,1747486238991,-150.0,0.0002599,2]
[361335603,1747486239001,-150.0,0.00025991,2]
[361335604,1747486239010,-150.0,0.00025992,2]
[361335605,1747486239020,-150.0,0.00025992,2]
[361335606,1747486239029,-150.0,0.00025995,2]
[361335607,1747486239039,-150.0,0.00025996,2]
[361335608,1747486239048,-640.0,0.00026001,2]
[361335609,1747486239058,-150.0,0.00026002,2]
[361335610,1747486239067,-150.0,0.00026003,2]
[361335611,1747486239077,-150.0,0.00026009,2]
[361335612,1747486239086,-150.0,0.00026016,2]
[361335613,1747486239096,-150.0,0.0002602,2]
[361335614,1747486239105,-150.0,0.00026021,2]
[361335615,1747486239115,-150.0,0.00026022,2]
[361335616,1747486239124,-150.0,0.00026023,2]
[361335617,1747486239133,-150.0,0.00026026,2]
[361335618,1747486239143,-150.0,0.00026035,2]
[361335619,1747486239152,-150.0,0.00026041,2]
[361335620,1747486239162,-150.0,0.0002605,2]
[361335621,1747486239171,-1000.0,0.00026051,2]
[361335622,1747486239181,-373.565087,0.00026107,7]
[361335623,1747486239190,-151.0,0.00026107,7]
[361335624,1747486239199,-200.0,0.00026107,2]
[361335625,1747486239208,-200.0,0.00026107,2]
[361335626,1747486239216,-1186.0,0.00026107,3]
[361335627,1747486239226,-1186.0,0.00026107,3]
[361335628,1747486239235,-1186.0,0.00026107,3]
[361335629,1747486239244,-1186.0,0.00026107,3]
[361335630,1747486239253,-1186.0,0.00026107,3]
[361335631,1747486239262,-1186.0,0.00026107,3]
[361335632,1747486239272,-1186.0,0.00026107,3]
[361335633,1747486239281,-1186.0,0.00026107,3]
[361335634,1747486239289,-1186.0,0.00026107,3]
[361335635,1747486239299,-1186.0,0.00026107,3]
[361335636,1747486239308,-168.35483354,0.00026107,3]
[361335637,1747486239317,-584.103657,0.00026117,7]
[361335638,1747486239326,-584.103657,0.00026117,7]
[361335639,1747486239336,-151.0,0.00026117,7]
[361335640,1747486239345,-1306.54110866,0.00026141,14]
[361335641,1747486239354,-562.51,0.00026196,2]
[361335642,1747486239364,-543.2,0.000262,2]
[361335643,1747486239373,-268.09,0.000262,2]
[361335644,1747486239382,-169.55,0.000262,2]
[361335645,1747486239392,-725.22970311,0.00026254,2]
[361335646,1747486239402,-200.0,0.00026368,2]
[361335647,1747486239411,-6443.52955775,0.00026424,2]
[361335648,1747486239421,-3465.94889059,0.00026456,2]
[361335650,1747486239430,-150.0,0.00026556,2]
[361335651,1747486239439,-1935.0,0.000266,2]
[361335652,1747486239449,-151.0,0.00026614,7]
[361335653,1747486239458,-200.0,0.00026632,2]
[361335654,1747486239467,-929.001,0.00026653,2]
[361335655,1747486239478,-793.0,0.00026653,2]
[361335656,1747486239487,-919.0,0.00026653,2]
[361335657,1747486239496,-1458.0,0.00026653,2]
[361335658,1747486239506,-429.999,0.00026653,2]
[361335659,1747486239515,-585.0,0.00026653,2]
[361335660,1747486239525,-4271.268,0.00026653,2]
[361335661,1747486239534,-4039.0,0.00026653,2]
[361335662,1747486239544,-154.0,0.00026653,2]
[361335663,1747486239553,-151.0,0.00026695,7]
[361335664,1747486239562,-256.514921,0.00026695,7]
[361335665,1747486239571,-151.0,0.00026695,7]
[361335666,1747486239580,-1306.54110866,0.00026762,15]
[361335667,1747486239590,-158.16122,0.00026813,7]
[361335668,1747486239599,-151.0,0.00026813,7]
[361335669,1747486239609,-151.0,0.00026823,7]
[361335670,1747486239619,-6443.52955766,0.00026921,2]
[361335671,1747486239628,-150.0,0.00027,2]
[361335672,1747486239638,-280.0,0.00027127,15]
[361335673,1747486239648,-179.0,0.00027185,7]
[361335674,1747486239657,-585.59951899,0.00027297,12]
[361335675,1747486239667,-223.0315306,0.00027354,2]
[361335676,1747486239677,-5005.18575387,0.00027357,2]
[361335677,1747486239687,-1306.54110866,0.00027383,17]
[361335678,1747486239698,-584.103657,0.00027387,7]
[361335679,1747486239708,-584.103657,0.00027387,7]
[361335680,1747486239717,-151.0,0.00027387,7]
[361335681,1747486239726,-364.5852577,0.00027397,2]
[361335682,1747486239735,-150.0,0.00027397,2]
[361335683,1747486239745,-203.96614844,0.00027397,2]
[361335684,1747486239755,-185.00614724,0.00027397,2]
[361335685,1747486239765,-500.0,0.00027397,2]
[361335686,1747486239775,-576.0,0.00027397,2]
[361335687,1747486239785,-200.0,0.00027397,60]
[361335688,1747486239798,-300.0,0.00027397,2]
[361335689,1747486239807,-5741.36,0.00027397,2]
[361335690,1747486239817,-1200.0,0.000274,2]
[361335691,1747486239827,-522.0,0.000274,2]
[361335692,1747486239836,-381.0,0.000274,2]
[361335693,1747486239846,-6443.52955766,0.00027419,2]
[361335694,1747486239855,-150.0,0.00027424,2]
[361335695,1747486239866,-500.0,0.00027424,2]
[361335696,1747486239875,-576.0,0.00027424,2]
[361335697,1747486239884,-214.65015909,0.00027452,2]
[361335698,1747486239893,-500.0,0.00027452,2]
[361335699,1747486239902,-576.0,0.00027452,2]
[361335700,1747486239912,-151.0,0.00027459,7]
[361335701,1747486239921,-151.0,0.00027459,7]
[361335702,1747486239931,-2110.0,0.00027459,2]
[361335703,1747486239940,-151.0,0.00027473,7]
[361335704,1747486239949,-151.0,0.00027473,7]
[361335705,1747486239960,-151.0,0.00027473,7]
[361335706,1747486239969,-151.0,0.00027473,7]
[361335707,1747486239978,-500.0,0.00027479,2]
[361335708,1747486239987,-576.0,0.00027479,2]
[361335709,1747486239996,-151.0,0.00027483,7]
[361335710,1747486240006,-151.0,0.00027483,7]
[361335711,1747486240015,-151.0,0.00027483,7]
[361335712,1747486240024,-584.103657,0.00027483,7]
[361335713,1747486240034,-584.103657,0.00027483,7]
[361335714,1747486240043,-151.0,0.00027483,7]
[361335715,1747486240052,-373.565087,0.00027483,7]
[361335716,1747486240062,-151.0,0.00027483,7]
[361335717,1747486240071,-1000.0,0.00027489,2]
[361335718,1747486240081,-500.0,0.00027507,2]
[361335719,1747486240090,-576.0,0.00027507,2]
[361335720,1747486240099,-1000.0,0.00027513,2]
[361335721,1747486240108,-1000.0,0.00027522,2]
[361335722,1747486240117,-500.0,0.00027534,2]
[361335723,1747486240126,-576.0,0.00027534,2]
[361335724,1747486240136,-151.0,0.00027534,7]
[361335725,1747486240145,-373.565087,0.00027552,7]
[361335726,1747486240154,-151.0,0.00027552,7]
[361335727,1747486240163,-151.42777162,0.00027561,2]
[361335728,1747486240173,-576.0,0.00027561,2]
[361335729,1747486240182,-157.96,0.00027567,2]
[361335730,1747486240191,-576.0,0.00027589,2]
[361335731,1747486240201,-151.0,0.0002759,7]
[361335732,1747486240210,-151.0,0.0002759,7]
[361335733,1747486240219,-151.0,0.0002759,7]
[361335734,1747486240228,-151.0,0.0002759,7]
[361335735,1747486240237,-6748.48328707,0.000276,30]
[361335736,1747486240246,-151.0,0.000276,7]
[361335737,1747486240256,-151.0,0.000276,7]
[361335738,1747486240265,-576.0,0.00027616,2]
[361335739,1747486240274,-264.91,0.00027629,120]
[361335740,1747486240284,-285.94,0.00027643,2]
[361335741,1747486240293,-576.0,0.00027644,2]
[361335742,1747486240302,-500.0,0.00027653,2]
[361335743,1747486240311,-20110.097,0.00027653,2]
[361335744,1747486240321,-10265.00201954,0.00027653,2]
[361335745,1747486240330,-460.81007505,0.00027653,2]
[361335746,1747486240339,-576.0,0.00027671,2]
[361335747,1747486240348,-500.0,0.00027671,2]
[361335748,1747486240357,-500.0,0.00027673,5]
[361335749,1747486240367,-500.0,0.00027676,2]
[361335750,1747486240376,-151.0,0.00027693,7]
[361335751,1747486240386,-151.0,0.00027698,7]
[361335752,1747486240395,-151.0,0.00027698,7]
[361335753,1747486240404,-576.0,0.00027698,2]
[361335754,1747486240414,-151.0,0.00027713,7]
[361335755,1747486240423,-263.886249,0.00027713,7]
[361335756,1747486240432,-151.0,0.00027713,7]
[361335757,1747486240442,-151.0,0.00027713,7]
[361335758,1747486240451,-151.0,0.00027713,7]
[361335759,1747486240460,-151.0,0.00027713,7]
[361335760,1747486240469,-151.0,0.00027713,7]
[361335761,1747486240478,-295.392023,0.00027713,7]
[361335762,1747486240488,-151.0,0.00027713,7]
[361335763,1747486240498,-576.0,0.00027726,2]
[361335764,1747486240507,-66888.7332639,0.00027743,3]
[361335765,1747486240516,-500.0,0.00027748,2]
[361335766,1747486240526,-17426.44761102,0.00027753,2]
[361335767,1747486241295,-91825.63768898,0.00027753,2]
[361335768,1747486241305,-216.162228,0.00027753,7]
[361335769,1747486241314,-216.162228,0.00027753,7]
[361335770,1747486241324,-161.676702,0.00027753,7]
[361335771,1747486241333,-161.676702,0.00027753,7]
[361335772,1747486241343,-151.0,0.00027753,7]
[361335773,1747486241352,-309.312791,0.00027753,7]
[361335774,1747486241361,-151.0,0.00027753,7]
[361335775,1747486241371,-309.312791,0.00027753,7]
[361335776,1747486241381,-910.684929,0.00027753,7]
[361335777,1747486241390,-910.684929,0.00027753,7]
[361335778,1747486241399,-151.0,0.00027753,7]
[361335779,1747486241409,-198.8349,0.00027753,7]
[361335780,1747486241418,-198.8349,0.00027753,7]
[361335781,1747486241428,-956.605421,0.00027753,7]
[361335782,1747486241438,-151.0,0.00027753,7]
[361335783,1747486241448,-956.605421,0.00027753,7]
[361335784,1747486241457,-576.0,0.00027753,2]
[361335785,1747486241467,-500.0,0.00027758,5]
[361335786,1747486241476,-500.0,0.00027758,5]
[361335787,1747486241486,-152.51925918,0.00027758,5]
[361335788,1747486241496,-151.0,0.00027764,7]
[361335789,1747486241506,-584.103657,0.00027764,7]
[361335790,1747486241515,-584.103657,0.00027764,7]
[361335791,1747486241524,-151.0,0.00027764,7]
[361335792,1747486241533,-151.0,0.00027764,7]
[361335793,1747486241543,-151.0,0.00027764,7]
[361335794,1747486241552,-151.0,0.00027764,7]
[361335795,1747486241561,-151.0,0.00027764,7]
[361335796,1747486241571,-151.0,0.00027764,7]
[361335797,1747486241581,-151.0,0.00027764,7]
[361335798,1747486241590,-500.0,0.00027773,5]
[361335799,1747486241599,-500.0,0.00027773,5]
[361335800,1747486241608,-500.0,0.00027773,5]
[361335801,1747486241618,-500.0,0.00027773,5]
[361335802,1747486241627,-500.0,0.00027773,5]
[361335803,1747486241636,-5000.0,0.00027773,2]
[361335804,1747486241645,-151.0,0.00027775,7]
[361335805,1747486241654,-151.0,0.00027775,7]
[361335806,1747486241663,-373.565087,0.00027775,7]
[361335807,1747486241673,-262.456004,0.00027775,7]
[361335808,1747486241682,-576.0,0.00027781,2]
[361335809,1747486241691,-500.0,0.00027784,5]
[361335810,1747486241700,-500.0,0.00027784,5]
[361335811,1747486241709,-151.623821,0.00027785,7]
[361335812,1747486241718,-151.0,0.00027785,7]
[361335813,1747486241727,-576.0,0.00027808,2]
[361335814,1747486241736,-151.0,0.00027835,7]
[361335815,1747486241744,-576.0,0.00027835,2]
[361335816,1747486241753,-500.0,0.00027846,2]
[361335817,1747486241763,-151.0,0.00027847,7]
[361335818,1747486241771,-151.0,0.00027847,7]
[361335819,1747486241781,-151.0,0.00027847,7]
[361335820,1747486241791,-151.0,0.00027847,7]
[361335821,1747486241801,-1000.0,0.00027858,2]
[361335822,1747486241816,-576.0,0.00027863,2]
[361335823,1747486241826,-151.0,0.00027863,7]
[361335824,1747486241835,-151.0,0.00027863,7]
[361335825,1747486241844,-151.0,0.00027863,7]
[361335826,1747486241853,-151.0,0.0002789,7]
[361335827,1747486241863,-151.0,0.0002789,7]
[361335828,1747486241873,-155.718582,0.0002789,7]
[361335829,1747486241882,-373.565087,0.0002789,7]
[361335830,1747486241895,-576.0,0.0002789,2]
[361335831,1747486241905,-500.0,0.000279,5]
[361335832,1747486241915,-500.0,0.000279,5]
[361335833,1747486241924,-500.0,0.000279,5]
[361335834,1747486241935,-500.0,0.000279,5]
[361335835,1747486241945,-500.0,0.000279,5]
[361335836,1747486241955,-500.0,0.000279,5]
[361335837,1747486241964,-509.43749596,0.000279,5]
[361335838,1747486241973,-500.0,0.000279,5]
[361335839,1747486241983,-500.0,0.000279,5]
[361335840,1747486241992,-500.0,0.000279,5]
[361335841,1747486242001,-500.0,0.000279,5]
[361335842,1747486242010,-500.0,0.000279,5]
[361335843,1747486242020,-504.86146751,0.000279,5]
[361335844,1747486242029,-500.0,0.000279,5]
[361335845,1747486242038,-500.0,0.000279,5]
[361335846,1747486242048,-500.0,0.000279,5]
[361335847,1747486242057,-184.54,0.00027904,120]
[361335848,1747486242067,-584.103657,0.00027911,7]
[361335849,1747486242076,-584.103657,0.00027911,7]
[361335850,1747486242085,-6443.52955766,0.00027916,2]
[361335851,1747486242094,-500.0,0.00027917,2]
[361335852,1747486242104,-576.0,0.00027918,2]
[361335853,1747486242114,-576.0,0.00027945,2]
[361335854,1747486242123,-198.8349,0.00027945,7]
[361335855,1747486242132,-198.8349,0.00027945,7]
[361335856,1747486242141,-151.0,0.00027955,7]
[361335857,1747486242151,-151.0,0.00027955,7]
[361335858,1747486242160,-151.0,0.00027955,7]
[361335859,1747486242169,-2110.0,0.00027959,2]
[361335860,1747486242179,-33444.366632,0.00027967,3]
[361335861,1747486242188,-151.0,0.00027968,7]
[361335862,1747486242198,-151.0,0.00027968,7]
[361335863,1747486242207,-500.0,0.00027968,2]
[361335864,1747486242216,-151.0,0.00027968,7]
[361335865,1747486242225,-956.605421,0.00027968,7]
[361335866,1747486242234,-151.0,0.00027968,7]
[361335867,1747486242244,-956.605421,0.00027968,7]
[361335868,1747486242257,-576.0,0.00027972,2]
[361335869,1747486242266,-500.0,0.00027973,5]
[361335870,1747486242276,-151.0,0.00027974,7]
[361335871,1747486242285,-151.0,0.00027974,7]
[361335872,1747486242295,-151.0,0.00027974,7]
[361335873,1747486242304,-151.0,0.00027974,7]
[361335874,1747486242314,-291.840838,0.00027977,7]
[361335875,1747486242323,-291.840838,0.00027977,7]
[361335876,1747486242332,-151.0,0.00027977,7]
[361335878,1747486242341,-189.408472,0.00027977,7]
[361335879,1747486242351,-151.0,0.00027977,7]
[361335880,1747486242361,-151.0,0.00027977,7]
[361335881,1747486242371,-216.162228,0.00027977,7]
[361335882,1747486242381,-216.162228,0.00027977,7]
[361335883,1747486242392,-161.676702,0.00027977,7]
[361335884,1747486242402,-161.676702,0.00027977,7]
[361335885,1747486242412,-309.312791,0.00027977,7]
[361335886,1747486242422,-309.312791,0.00027977,7]
[361335888,1747486242432,-368.978199,0.00027977,7]
[361335890,1747486242442,-368.978199,0.00027977,7]
[361335892,1747486242452,-151.0,0.00027977,7]
[361335893,1747486242463,-910.684929,0.00027977,7]
[361335894,1747486242473,-910.684929,0.00027977,7]
[361335896,1747486242484,-151.0,0.00027978,7]
[361335897,1747486242493,-151.0,0.00027978,7]
[361335898,1747486242503,-179.296411,0.00027978,7]
[361335899,1747486242513,-374.804411,0.00027978,7]
[361335900,1747486242527,-374.804411,0.00027978,7]
[361335902,1747486242537,-1857.418281,0.00027978,7]
[361335904,1747486242548,-1857.418281,0.00027978,7]
[361335906,1747486242558,-151.0,0.00027987,7]
[361335908,1747486242568,-151.0,0.00027987,7]
[361335910,1747486242578,-272.439488,0.00027987,7]
[361335912,1747486242588,-151.0,0.00027987,7]
[361335914,1747486242598,-151.0,0.00027987,7]
[361335916,1747486242608,-151.0,0.00027987,7]
[361335919,1747486242618,-151.0,0.00027987,7]
[361335920,1747486242628,-151.0,0.00027987,7]
[361335921,1747486242638,-373.565087,0.00027987,7]
[361335922,1747486242648,-151.0,0.0002799,7]
[361335923,1747486242658,-151.0,0.0002799,7]
[361335924,1747486242668,-576.0,0.00028,2]
[361335925,1747486242679,-1306.54110866,0.00028003,18]
[361335926,1747486242690,-10265.00201947,0.00028014,2]
[361335927,1747486242700,-576.0,0.00028027,2]
[361335928,1747486242710,-151.0,0.00028032,7]
[361335929,1747486242720,-151.0,0.00028032,7]
[361335930,1747486242730,-151.0,0.00028032,7]
[361335931,1747486242740,-151.0,0.00028032,7]
[361335932,1747486242750,-2000.0,0.00028032,2]
[361335933,1747486242760,-2000.0,0.00028052,2]
[361335934,1747486242770,-584.103657,0.00028054,7]
[361335935,1747486242780,-584.103657,0.00028054,7]
[361335936,1747486242791,-151.0,0.00028054,7]
[361335937,1747486242803,-151.0,0.00028054,7]
[361335938,1747486242812,-151.0,0.00028054,7]
[361335939,1747486242822,-1000.0,0.00028063,2]
[361335940,1747486242832,-151.0,0.00028069,7]
[361335941,1747486242842,-4000.0,0.0002818,2]
[361335942,1747486242852,-1000.0,0.00028203,2]
[361335943,1747486242863,-154.78,0.00028203,2]
[361335944,1747486242873,-500.0,0.00028209,2]
[361335945,1747486242884,-500.77208003,0.00028221,5]
[361335946,1747486242893,-373.565087,0.00028225,7]
[361335947,1747486242903,-291.840838,0.00028225,7]
[361335948,1747486242912,-291.840838,0.00028225,7]
[361335949,1747486242922,-198.8349,0.00028225,7]
[361335950,1747486242932,-198.8349,0.00028225,7]
[361335951,1747486242942,-151.0,0.00028236,7]
[361335952,1747486242951,-151.0,0.00028236,7]
[361335953,1747486242961,-151.0,0.00028236,7]
[361335955,1747486242970,-151.0,0.00028236,7]
[361335956,1747486242980,-151.0,0.00028245,7]
[361335957,1747486242989,-151.0,0.00028245,7]
[361335958,1747486242998,-151.0,0.00028245,7]
[361335959,1747486243008,-151.0,0.00028245,7]
[361335960,1747486243017,-151.0,0.00028245,7]
[361335962,1747486243027,-151.0,0.00028245,7]
[361335964,1747486243036,-151.0,0.00028245,7]
[361335966,1747486243046,-151.0,0.00028245,7]
[361335968,1747486243056,-520.04830345,0.00028306,5]
[361335970,1747486243065,-1000.0,0.00028306,5]
[361335972,1747486243076,-151.0,0.00028316,7]
[361335975,1747486243086,-151.0,0.00028316,7]
[361335978,1747486243095,-151.0,0.00028316,7]
[361335981,1747486243104,-151.0,0.00028316,7]
[361335984,1747486243114,-151.0,0.00028316,7]
[361335986,1747486243123,-151.0,0.00028316,7]
[361335988,1747486243133,-503.52444671,0.00028321,5]
[361335990,1747486243143,-500.33340618,0.00028321,5]
[361335992,1747486243152,-1000.0,0.00028321,5]
[361335995,1747486243163,-1000.0,0.00028321,5]
[361335997,1747486243173,-1000.0,0.00028321,5]
[361335999,1747486243182,-1000.0,0.00028332,5]
[361336001,1747486243191,-1000.0,0.00028332,5]
[361336003,1747486243200,-151.0,0.00028333,7]
[361336005,1747486243210,-151.0,0.00028333,7]
[361336007,1747486243219,-956.605421,0.00028333,7]
[361336009,1747486243228,-151.0,0.00028333,7]
[361336011,1747486243238,-956.605421,0.00028333,7]
[361336013,1747486243248,-2000.0,0.00028367,2]
[361336015,1747486243257,-10265.00201947,0.00028375,2]
[361336017,1747486243267,-6443.52955766,0.00028413,2]
[361336019,1747486243277,-33444.366632,0.0002842,3]
[361336021,1747486243287,-2000.0,0.0002843,2]
[361336023,1747486243297,-1000.0,0.00028448,5]
[361336025,1747486243307,-271.43399024,0.00028448,5]
[361336027,1747486243316,-274.4779123,0.00028448,5]
[361336029,1747486243327,-1000.0,0.00028448,5]
[361336031,1747486243336,-803.1598864,0.00028448,5]
[361336033,1747486243346,-1000.0,0.00028448,5]
[361336036,1747486243363,-1000.0,0.00028448,5]
[361336038,1747486243376,-1000.0,0.00028448,5]
[361336040,1747486243386,-1000.0,0.00028448,5]
[361336042,1747486243396,-1000.0,0.00028448,5]
[361336045,1747486243407,-1000.0,0.00028448,5]
[361336047,1747486243417,-500.274438,0.00028448,5]
[361336049,1747486243427,-1000.0,0.00028448,5]
[361336051,1747486243437,-1113.65111647,0.00028448,5]
[361336053,1747486243448,-2110.0,0.00028459,2]
[361336055,1747486243458,-562.51,0.0002846,2]
[361336057,1747486243470,-500.0,0.00028469,2]
[361336059,1747486243481,-680.42542436,0.0002848,2]
[361336061,1747486243492,-500.0,0.00028488,2]
[361336063,1747486243504,-1000.0,0.00028489,2]
[361336065,1747486243514,-158.13751,0.000285,2]
[361336067,1747486243524,-151.0,0.00028504,7]
[361336068,1747486243535,-151.0,0.00028504,7]
[361336069,1747486243545,-151.0,0.00028504,7]
[361336070,1747486243555,-151.0,0.00028504,7]
[361336071,1747486243565,-374.804411,0.00028504,7]
[361336072,1747486243575,-374.804411,0.00028504,7]
[361336073,1747486243585,-151.0,0.00028504,7]
[361336074,1747486243595,-216.162228,0.00028504,7]
[361336075,1747486243605,-216.162228,0.00028504,7]
[361336076,1747486243615,-161.676702,0.00028504,7]
[361336077,1747486243625,-161.676702,0.00028504,7]
[361336078,1747486243635,-309.312791,0.00028504,7]
[361336079,1747486243644,-309.312791,0.00028504,7]
[361336080,1747486243654,-368.978199,0.00028504,7]
[361336081,1747486243663,-368.978199,0.00028504,7]
[361336082,1747486243674,-910.684929,0.00028504,7]
[361336083,1747486243684,-910.684929,0.00028504,7]
[361336084,1747486243694,-1857.418281,0.00028504,7]
[361336085,1747486243704,-1857.418281,0.00028504,7]
[361336086,1747486243714,-584.103657,0.00028508,7]
[361336087,1747486243723,-584.103657,0.00028508,7]
[361336088,1747486243733,-151.0,0.00028508,7]
[361336089,1747486243743,-151.0,0.00028508,7]
[361336090,1747486243752,-151.0,0.00028508,7]
[361336091,1747486243762,-238.333395,0.00028508,7]
[361336092,1747486243772,-238.333395,0.00028508,7]
[361336093,1747486243782,-170.00795,0.00028508,7]
[361336094,1747486243793,-170.00795,0.00028508,7]
[361336095,1747486243804,-153.97,0.00028513,2]
[361336096,1747486243813,-373.565083,0.00028514,7]
[361336097,1747486243823,-151.0,0.00028514,7]
[361336098,1747486243832,-151.0,0.00028514,7]
[361336099,1747486243842,-151.0,0.00028514,7]
[361336100,1747486243852,-151.0,0.00028514,7]
[361336101,1747486243862,-151.0,0.00028514,7]
[361336102,1747486243873,-151.0,0.00028514,7]
[361336103,1747486243882,-151.0,0.00028514,7]
[361336104,1747486243892,-151.0,0.00028514,7]
[361336105,1747486243902,-197.843086,0.00028514,7]
[361336106,1747486243911,-197.843086,0.00028514,7]
[361336107,1747486243922,-1000.0,0.00028521,5]
[361336108,1747486243931,-500.0,0.00028531,2]
[361336109,1747486243941,-151.0,0.00028534,7]
[361336110,1747486243950,-1000.0,0.00028556,2]
[361336111,1747486243961,-500.0,0.00028571,120]
[361336112,1747486243970,-198.8349,0.00028588,7]
[361336113,1747486243980,-198.8349,0.00028588,7]
[361336114,1747486243989,-151.0,0.00028588,7]
[361336115,1747486243999,-291.840838,0.00028589,7]
[361336116,1747486244008,-291.840838,0.00028589,7]
[361336117,1747486244017,-162.213157,0.00028599,7]
[361336118,1747486244027,-151.0,0.00028599,7]
[361336119,1747486244037,-151.0,0.00028599,7]
[361336120,1747486244047,-151.0,0.00028599,7]
[361336121,1747486244057,-151.0,0.00028599,7]
[361336122,1747486244068,-151.0,0.00028599,7]
[361336123,1747486244082,-471.129787,0.00028609,7]
[361336124,1747486244092,-151.0,0.00028609,7]
[361336125,1747486244103,-151.0,0.00028609,7]
[361336126,1747486244114,-1306.54110866,0.00028624,19]
[361336127,1747486244124,-1381.64724075,0.00028625,2]
[361336128,1747486244133,-150.0,0.00028627,2]
[361336129,1747486244143,-151.0,0.00028665,7]
[361336130,1747486244154,-151.0,0.00028665,7]
[361336131,1747486244164,-956.605421,0.00028665,7]
[361336132,1747486244176,-956.605421,0.00028665,7]
[361336133,1747486244186,-33444.366632,0.00028665,3]
[361336134,1747486244197,-300.0,0.00028674,10]
[361336135,1747486244207,-27862.8569383,0.00028675,3]
[361336136,1747486244217,-151.0,0.00028675,7]
[361336137,1747486244227,-151.0,0.00028675,7]
[361336138,1747486244237,-151.0,0.00028675,7]
[361336139,1747486244246,-151.0,0.00028675,7]